[Event "*** Titled Tuesday 3|2 Blitz"]
[Site "Chess.com"]
[Date "2016.01.05"]
[Round "6"]
[White "saraswathii"]
[Black "DaPazz"]
[Result "1/2-1/2"]
[WhiteElo "1864"]
[BlackElo "1867"]
[TimeControl "180+2"]
[EndTime "12:07:11 PST"]
[Termination "Game drawn by agreement"]

1. e4 {[%clk 0:02:52]} 1... e5 {[%clk 0:02:58.9]} 2. d3 {[%clk 0:02:49.2]} 2...
d5 {[%clk 0:02:57.7]} 3. exd5 {[%clk 0:02:47.5]} 3... Nf6 {[%clk 0:02:54.7]} 4.
c4 {[%clk 0:02:47.3]} 4... c6 {[%clk 0:02:53.8]} 5. dxc6 {[%clk 0:02:44.7]} 5...
Bc5 {[%clk 0:02:54.3]} 6. cxb7 {[%clk 0:02:40.8]} 6... Bxb7 {[%clk 0:02:54.8]}
7. Be2 {[%clk 0:02:39.7]} 7... Bxg2 {[%clk 0:02:47.7]} 8. Bf3 {[%clk 0:02:27.9]}
8... Bxf3 {[%clk 0:02:42.3]} 9. Qxf3 {[%clk 0:02:18.7]} 9... Nbd7 {[%clk
0:02:39.1]} 10. Nc3 {[%clk 0:02:17.6]} 10... O-O {[%clk 0:02:37.2]} 11. Nge2
{[%clk 0:02:14.3]} 11... e4 {[%clk 0:02:01]} 1/2-1/2

[Event "*** Titled Tuesday 3|2 Blitz"]
[Site "Chess.com"]
[Date "2016.01.05"]
[Round "6"]
[White "AvitalBor"]
[Black "GMCanty"]
[Result "1-0"]
[WhiteElo "2340"]
[BlackElo "2214"]
[TimeControl "180+2"]
[EndTime "12:08:46 PST"]
[Termination "AvitalBor won by resignation"]

1. b3 {[%clk 0:03:01.9]} 1... c5 {[%clk 0:02:59.7]} 2. Bb2 {[%clk 0:03:03.8]}
2... d6 {[%clk 0:02:59.9]} 3. f4 {[%clk 0:03:03]} 3... Nc6 {[%clk 0:02:59.4]} 4.
Nf3 {[%clk 0:03:04.9]} 4... Qc7 {[%clk 0:02:59.6]} 5. e4 {[%clk 0:03:05.2]} 5...
e5 {[%clk 0:03:00.5]} 6. fxe5 {[%clk 0:03:01.9]} 6... dxe5 {[%clk 0:03:02.4]} 7.
Bc4 {[%clk 0:03:03]} 7... Bg4 {[%clk 0:02:56.6]} 8. O-O {[%clk 0:03:00.6]} 8...
O-O-O {[%clk 0:02:57.6]} 9. Qe1 {[%clk 0:02:54.7]} 9... Nh6 {[%clk 0:02:53]} 10.
d3 {[%clk 0:02:40.5]} 10... Bd6 {[%clk 0:02:43.2]} 11. Nc3 {[%clk 0:02:39.2]}
11... a6 {[%clk 0:02:36.7]} 12. Nd5 {[%clk 0:02:38.5]} 12... Qb8 {[%clk
0:02:31.1]} 13. a4 {[%clk 0:02:30.3]} 13... Be6 {[%clk 0:02:20.9]} 14. Qg3
{[%clk 0:02:27.6]} 14... Rhg8 {[%clk 0:02:16]} 15. a5 {[%clk 0:02:18.3]} 15...
Nd4 {[%clk 0:02:06]} 16. Bxd4 {[%clk 0:02:14.4]} 16... exd4 {[%clk 0:01:46.9]}
17. Nb6+ {[%clk 0:02:09.7]} 17... Kc7 {[%clk 0:01:44.4]} 18. e5 {[%clk
0:02:08.4]} 18... Be7 {[%clk 0:01:41.8]} 19. Bxe6 {[%clk 0:01:58.8]} 19... fxe6
{[%clk 0:01:42.8]} 20. Ra4 {[%clk 0:01:59.3]} 20... Nf5 {[%clk 0:01:42.8]} 21.
Qf2 {[%clk 0:01:56.3]} 21... g5 {[%clk 0:01:41.8]} 22. g4 {[%clk 0:01:54.4]}
22... Ne3 {[%clk 0:01:41.6]} 23. Nxd4 {[%clk 0:01:53.9]} 23... Rxd4 {[%clk
0:01:38.1]} 24. Qxe3 {[%clk 0:01:52.3]} 24... Rxg4+ {[%clk 0:01:38.7]} 25. Rxg4
{[%clk 0:01:51.2]} 1-0

[Event "*** Titled Tuesday 3|2 Blitz"]
[Site "Chess.com"]
[Date "2016.01.05"]
[Round "6"]
[White "cool64chess"]
[Black "MapleDanish"]
[Result "1/2-1/2"]
[WhiteElo "2224"]
[BlackElo "2075"]
[TimeControl "180+2"]
[EndTime "12:09:19 PST"]
[Termination "Game drawn by agreement"]

1. d4 {[%clk 0:03:01.9]} 1... d5 {[%clk 0:03:01]} 2. c4 {[%clk 0:03:01.3]} 2...
e6 {[%clk 0:03:02.4]} 3. Nc3 {[%clk 0:03:00.8]} 3... Be7 {[%clk 0:03:04]} 4. Nf3
{[%clk 0:03:01.6]} 4... Nf6 {[%clk 0:03:04.2]} 5. Bg5 {[%clk 0:03:02.6]} 5...
O-O {[%clk 0:03:05.6]} 6. e3 {[%clk 0:03:03.8]} 6... h6 {[%clk 0:03:07.2]} 7.
Bh4 {[%clk 0:03:04.1]} 7... Ne4 {[%clk 0:03:08.8]} 8. Bxe7 {[%clk 0:03:04.4]}
8... Qxe7 {[%clk 0:03:10.7]} 9. Bd3 {[%clk 0:03:05.7]} 9... Nxc3 {[%clk
0:03:11]} 10. bxc3 {[%clk 0:03:06.6]} 10... c5 {[%clk 0:03:10]} 11. O-O {[%clk
0:03:07.2]} 11... Nc6 {[%clk 0:03:08.8]} 12. e4 {[%clk 0:03:05]} 12... cxd4
{[%clk 0:03:05.3]} 13. cxd4 {[%clk 0:03:05.6]} 13... dxe4 {[%clk 0:03:05.4]} 14.
Bxe4 {[%clk 0:03:06.4]} 14... Bd7 {[%clk 0:03:06.2]} 15. Rb1 {[%clk 0:03:05.8]}
15... Rab8 {[%clk 0:03:06.8]} 16. Qe2 {[%clk 0:03:02.2]} 16... Rfd8 {[%clk
0:03:04.4]} 17. Rfe1 {[%clk 0:02:45.7]} 17... Qf6 {[%clk 0:03:05.3]} 18. Rbd1
{[%clk 0:02:34.3]} 18... Ne7 {[%clk 0:02:42.4]} 19. Ne5 {[%clk 0:02:26.8]} 19...
Ba4 {[%clk 0:02:43.6]} 20. Rd3 {[%clk 0:02:23.8]} 20... Nc6 {[%clk 0:02:40.9]}
21. Bxc6 {[%clk 0:01:59.8]} 21... Bxc6 {[%clk 0:02:33.1]} 22. d5 {[%clk
0:01:55.9]} 22... exd5 {[%clk 0:02:27.6]} 23. Rf3 {[%clk 0:01:52.2]} 23... Qe6
{[%clk 0:02:21.8]} 24. Nxf7 {[%clk 0:01:46.8]} 24... Qxe2 {[%clk 0:02:16.4]} 25.
Rxe2 {[%clk 0:01:45]} 25... dxc4 {[%clk 0:02:17.7]} 26. Nxd8 {[%clk 0:01:44.7]}
26... Bxf3 {[%clk 0:02:18.4]} 27. Re8+ {[%clk 0:01:44.8]} 27... Kh7 {[%clk
0:02:19.8]} 28. gxf3 {[%clk 0:01:45.7]} 28... c3 {[%clk 0:02:20.9]} 29. Re3
{[%clk 0:01:31.6]} 29... Rxd8 {[%clk 0:02:16]} 30. Rxc3 {[%clk 0:01:32.5]} 30...
Rd2 {[%clk 0:02:15.8]} 31. Rc7 {[%clk 0:01:25.3]} 31... Rxa2 {[%clk 0:02:07.8]}
32. Rxb7 {[%clk 0:01:24.3]} 32... a5 {[%clk 0:02:07.5]} 1/2-1/2

[Event "*** Titled Tuesday 3|2 Blitz"]
[Site "Chess.com"]
[Date "2016.01.05"]
[Round "6"]
[White "AlexanderL"]
[Black "nijat_a"]
[Result "0-1"]
[WhiteElo "2544"]
[BlackElo "2708"]
[TimeControl "180+2"]
[EndTime "12:09:22 PST"]
[Termination "nijat_a won by checkmate"]

1. d4 {[%clk 0:02:22]} 1... Nf6 {[%clk 0:03:00.2]} 2. c4 {[%clk 0:02:22.9]} 2...
e6 {[%clk 0:03:01.5]} 3. Nc3 {[%clk 0:02:23.8]} 3... Bb4 {[%clk 0:03:02.3]} 4.
Qc2 {[%clk 0:02:25.4]} 4... d5 {[%clk 0:03:03]} 5. a3 {[%clk 0:02:24.6]} 5...
Bxc3+ {[%clk 0:03:03.5]} 6. Qxc3 {[%clk 0:02:26]} 6... O-O {[%clk 0:03:05.2]} 7.
Nf3 {[%clk 0:02:24.3]} 7... Ne4 {[%clk 0:03:05.1]} 8. Qc2 {[%clk 0:02:25.2]}
8... c5 {[%clk 0:03:06.4]} 9. dxc5 {[%clk 0:02:25]} 9... Nc6 {[%clk 0:03:06.9]}
10. b4 {[%clk 0:02:20.9]} 10... a5 {[%clk 0:02:35.9]} 11. b5 {[%clk 0:02:21.9]}
11... Ne7 {[%clk 0:02:36.4]} 12. cxd5 {[%clk 0:02:15.6]} 12... exd5 {[%clk
0:02:36.9]} 13. e3 {[%clk 0:02:11.9]} 13... Bf5 {[%clk 0:02:36]} 14. Nd4 {[%clk
0:01:32.2]} 14... Rc8 {[%clk 0:02:36.7]} 15. Nxf5 {[%clk 0:01:13.5]} 15... Nxf5
{[%clk 0:02:38.6]} 16. Bd3 {[%clk 0:01:08.5]} 16... Rxc5 {[%clk 0:02:38.8]} 17.
Qe2 {[%clk 0:01:05.9]} 17... Qh4 {[%clk 0:02:34.3]} 18. O-O {[%clk 0:01:01.2]}
18... Nc3 {[%clk 0:02:31.5]} 19. Qf3 {[%clk 0:00:56.3]} 19... Nd6 {[%clk
0:02:32.7]} 20. Qg3 {[%clk 0:00:48.2]} 20... Qxg3 {[%clk 0:02:30.7]} 21. hxg3
{[%clk 0:00:48.8]} 21... Ndxb5 {[%clk 0:02:20]} 22. a4 {[%clk 0:00:49.9]} 22...
Nd6 {[%clk 0:02:18.7]} 23. Ba3 {[%clk 0:00:50.9]} 23... Rc6 {[%clk 0:02:19.8]}
24. Bb5 {[%clk 0:00:44.9]} 24... Ndxb5 {[%clk 0:02:15.8]} 25. axb5 {[%clk
0:00:43.3]} 25... Ne2+ {[%clk 0:02:17]} 26. Kh2 {[%clk 0:00:43.8]} 26... Rh6#
{[%clk 0:02:18.9]} 0-1

[Event "*** Titled Tuesday 3|2 Blitz"]
[Site "Chess.com"]
[Date "2016.01.05"]
[Round "6"]
[White "KNVB"]
[Black "pKiLz5Rn9b"]
[Result "0-1"]
[WhiteElo "2397"]
[BlackElo "2366"]
[TimeControl "180+2"]
[EndTime "12:10:00 PST"]
[Termination "pKiLz5Rn9b won by resignation"]

1. d4 {[%clk 0:03:01.9]} 1... e6 {[%clk 0:02:59.1]} 2. c4 {[%clk 0:02:59.3]}
2... Nf6 {[%clk 0:03:00]} 3. Nc3 {[%clk 0:03:00.4]} 3... Bb4 {[%clk 0:03:00.8]}
4. Qc2 {[%clk 0:03:00.6]} 4... d5 {[%clk 0:03:01.7]} 5. a3 {[%clk 0:02:58.7]}
5... Bxc3+ {[%clk 0:03:02.8]} 6. Qxc3 {[%clk 0:03:00.6]} 6... Ne4 {[%clk
0:03:04.5]} 7. Qc2 {[%clk 0:03:00.9]} 7... c5 {[%clk 0:03:06.2]} 8. e3 {[%clk
0:03:01.6]} 8... Nc6 {[%clk 0:03:06.7]} 9. dxc5 {[%clk 0:03:00.1]} 9... Qa5+
{[%clk 0:03:01.1]} 10. Bd2 {[%clk 0:03:01.1]} 10... Nxd2 {[%clk 0:02:59.6]} 11.
Qxd2 {[%clk 0:03:03]} 11... dxc4 {[%clk 0:03:01.1]} 12. Qxa5 {[%clk 0:03:03.7]}
12... Nxa5 {[%clk 0:03:02.4]} 13. Rc1 {[%clk 0:03:04.8]} 13... b5 {[%clk
0:02:57.1]} 14. cxb6 {[%clk 0:03:05.6]} 14... axb6 {[%clk 0:02:58.4]} 15. Bxc4
{[%clk 0:03:04.4]} 15... Bb7 {[%clk 0:02:50.6]} 16. Bb5+ {[%clk 0:02:52.9]}
16... Ke7 {[%clk 0:02:51.1]} 17. Nf3 {[%clk 0:02:47.8]} 17... Rhc8 {[%clk
0:02:51.7]} 18. Ke2 {[%clk 0:01:42]} 18... Nb3 {[%clk 0:02:39.8]} 19. Rc4 {[%clk
0:01:18.4]} 19... Bd5 {[%clk 0:02:40.4]} 20. Rxc8 {[%clk 0:00:56]} 20... Rxc8
{[%clk 0:02:42.3]} 21. Bd3 {[%clk 0:00:10.2]} 21... Nc1+ {[%clk 0:02:40.8]} 22.
Kd2 {[%clk 0:00:10.8]} 22... Nb3+ {[%clk 0:02:40.2]} 23. Ke2 {[%clk 0:00:11.8]}
23... f5 {[%clk 0:02:08.6]} 24. Rb1 {[%clk 0:00:09.3]} 24... Nc1+ {[%clk
0:02:07.5]} 25. Kd2 {[%clk 0:00:09.7]} 25... Nxd3 {[%clk 0:02:09]} 26. Nd4
{[%clk 0:00:10.1]} 26... Nxf2 {[%clk 0:02:09.3]} 0-1

[Event "*** Titled Tuesday 3|2 Blitz"]
[Site "Chess.com"]
[Date "2016.01.05"]
[Round "6"]
[White "the_drake"]
[Black "Frolyanov_D"]
[Result "0-1"]
[WhiteElo "2027"]
[BlackElo "2472"]
[TimeControl "180+2"]
[EndTime "12:10:21 PST"]
[Termination "Frolyanov_D won by checkmate"]

1. e4 {[%clk 0:03:01.9]} 1... e5 {[%clk 0:03:00.3]} 2. Nf3 {[%clk 0:03:02.4]}
2... Nf6 {[%clk 0:03:01.3]} 3. Nc3 {[%clk 0:03:02.1]} 3... Nc6 {[%clk
0:03:01.8]} 4. h3 {[%clk 0:02:54.5]} 4... d5 {[%clk 0:02:57.8]} 5. exd5 {[%clk
0:02:56.4]} 5... Nxd5 {[%clk 0:02:59.1]} 6. Bc4 {[%clk 0:02:55.3]} 6... Nxc3
{[%clk 0:02:54.8]} 7. bxc3 {[%clk 0:02:56.5]} 7... Be7 {[%clk 0:02:52.8]} 8. O-O
{[%clk 0:02:55.5]} 8... e4 {[%clk 0:02:53.3]} 9. Nh2 {[%clk 0:02:38.6]} 9... O-O
{[%clk 0:02:52.5]} 10. Re1 {[%clk 0:02:39.9]} 10... Bf5 {[%clk 0:02:51.1]} 11.
Nf1 {[%clk 0:02:34.3]} 11... Ne5 {[%clk 0:02:48]} 12. Bb3 {[%clk 0:02:12]} 12...
Bh4 {[%clk 0:02:00.4]} 13. d4 {[%clk 0:02:02]} 13... Ng6 {[%clk 0:02:00.5]} 14.
Qh5 {[%clk 0:01:52]} 14... Qf6 {[%clk 0:01:57.2]} 15. g3 {[%clk 0:01:29.2]}
15... Bxh3 {[%clk 0:01:50.8]} 16. gxh4 {[%clk 0:01:26.5]} 16... Nxh4 {[%clk
0:01:51.1]} 17. Nh2 {[%clk 0:01:08.8]} 17... h6 {[%clk 0:01:32.1]} 18. Rxe4
{[%clk 0:01:01.5]} 18... Rae8 {[%clk 0:01:32]} 19. Re5 {[%clk 0:00:30.8]} 19...
Rxe5 {[%clk 0:01:26.4]} 20. dxe5 {[%clk 0:00:29.1]} 20... Qc6 {[%clk 0:01:26.5]}
21. f3 {[%clk 0:00:16]} 21... Qc5+ {[%clk 0:01:26.9]} 22. Kh1 {[%clk 0:00:17.3]}
22... Bg2# {[%clk 0:01:27.1]} 0-1

[Event "*** Titled Tuesday 3|2 Blitz"]
[Site "Chess.com"]
[Date "2016.01.05"]
[Round "6"]
[White "TheLancer"]
[Black "jbj"]
[Result "1-0"]
[WhiteElo "2401"]
[BlackElo "2285"]
[TimeControl "180+2"]
[EndTime "12:11:32 PST"]
[Termination "TheLancer won by checkmate"]

1. e4 {[%clk 0:03:01.9]} 1... d6 {[%clk 0:03:00.8]} 2. d4 {[%clk 0:03:02.6]}
2... Nf6 {[%clk 0:03:02.2]} 3. Nc3 {[%clk 0:03:04.1]} 3... e5 {[%clk 0:03:03.6]}
4. Nf3 {[%clk 0:03:03.9]} 4... Nbd7 {[%clk 0:03:04.9]} 5. dxe5 {[%clk 0:03:04]}
5... dxe5 {[%clk 0:03:05.5]} 6. Bc4 {[%clk 0:03:04.9]} 6... Be7 {[%clk
0:03:04.1]} 7. h3 {[%clk 0:02:51.3]} 7... O-O {[%clk 0:03:04.8]} 8. O-O {[%clk
0:02:52.9]} 8... c6 {[%clk 0:03:06]} 9. a4 {[%clk 0:02:53.5]} 9... Qc7 {[%clk
0:03:04.3]} 10. Qe2 {[%clk 0:02:52.4]} 10... a5 {[%clk 0:03:05.3]} 11. Be3
{[%clk 0:02:49]} 11... Nc5 {[%clk 0:03:05]} 12. Ng5 {[%clk 0:02:47.6]} 12... h6
{[%clk 0:03:02]} 13. Nxf7 {[%clk 0:02:48.7]} 13... Rxf7 {[%clk 0:03:02.9]} 14.
Bxf7+ {[%clk 0:02:50.4]} 14... Kxf7 {[%clk 0:03:04.5]} 15. Bxc5 {[%clk
0:02:52.1]} 15... Be6 {[%clk 0:02:28.6]} 16. Bxe7 {[%clk 0:02:48.6]} 16... Qxe7
{[%clk 0:02:30.2]} 17. Qe3 {[%clk 0:02:32.5]} 17... Qb4 {[%clk 0:02:30.1]} 18.
Rad1 {[%clk 0:02:20.4]} 18... Kg8 {[%clk 0:02:11.8]} 19. b3 {[%clk 0:02:19.7]}
19... Rf8 {[%clk 0:01:51.9]} 20. Rd2 {[%clk 0:02:14.7]} 20... Nh5 {[%clk
0:01:26]} 21. Ne2 {[%clk 0:02:03.5]} 21... Nf6 {[%clk 0:01:06.2]} 22. f3 {[%clk
0:01:54]} 22... b5 {[%clk 0:01:01.8]} 23. Qc3 {[%clk 0:01:42.6]} 23... bxa4
{[%clk 0:00:48.3]} 24. Qxb4 {[%clk 0:01:43.2]} 24... axb4 {[%clk 0:00:48.5]} 25.
bxa4 {[%clk 0:01:44.9]} 25... Bc4 {[%clk 0:00:40.1]} 26. Rb1 {[%clk 0:01:40.9]}
26... c5 {[%clk 0:00:40.4]} 27. Nc1 {[%clk 0:01:42.1]} 27... Ra8 {[%clk
0:00:33.7]} 28. Nb3 {[%clk 0:01:42.5]} 28... Rxa4 {[%clk 0:00:13.6]} 29. Nxc5
{[%clk 0:01:43.2]} 29... Ra5 {[%clk 0:00:13.5]} 30. Nb7 {[%clk 0:01:30.3]} 30...
Ra2 {[%clk 0:00:06.8]} 31. Nd6 {[%clk 0:01:28]} 31... Be6 {[%clk 0:00:06]} 32.
Rxb4 {[%clk 0:01:25.4]} 32... Ra1+ {[%clk 0:00:06.7]} 33. Kf2 {[%clk 0:01:25.7]}
33... Nh5 {[%clk 0:00:06.8]} 34. Nf5 {[%clk 0:01:22.5]} 34... Nf4 {[%clk
0:00:06.7]} 35. Rb7 {[%clk 0:01:21.7]} 35... g6 {[%clk 0:00:03.1]} 36. Rd8#
{[%clk 0:01:20.8]} 1-0

[Event "*** Titled Tuesday 3|2 Blitz"]
[Site "Chess.com"]
[Date "2016.01.05"]
[Round "6"]
[White "Vorenus_Lucius"]
[Black "volodja49"]
[Result "1-0"]
[WhiteElo "2493"]
[BlackElo "2301"]
[TimeControl "180+2"]
[EndTime "12:11:59 PST"]
[Termination "Vorenus_Lucius won on time"]

1. d4 {[%clk 0:03:01.9]} 1... d5 {[%clk 0:03:00.7]} 2. c4 {[%clk 0:03:02.6]}
2... e6 {[%clk 0:03:02.1]} 3. Nf3 {[%clk 0:03:03.5]} 3... Nf6 {[%clk 0:03:03.3]}
4. g3 {[%clk 0:03:04.6]} 4... Nbd7 {[%clk 0:03:00.6]} 5. Bg2 {[%clk 0:03:01.3]}
5... dxc4 {[%clk 0:03:01.6]} 6. O-O {[%clk 0:02:56.6]} 6... Rb8 {[%clk
0:02:19.8]} 7. Qc2 {[%clk 0:02:11.2]} 7... b5 {[%clk 0:02:17]} 8. b3 {[%clk
0:02:12.4]} 8... cxb3 {[%clk 0:02:11.8]} 9. axb3 {[%clk 0:02:13.6]} 9... a6
{[%clk 0:02:10.1]} 10. e4 {[%clk 0:02:14.7]} 10... Bb7 {[%clk 0:02:09.1]} 11.
Nbd2 {[%clk 0:02:14.1]} 11... Be7 {[%clk 0:01:53.1]} 12. Ba3 {[%clk 0:02:14.8]}
12... O-O {[%clk 0:01:43]} 13. b4 {[%clk 0:02:02.6]} 13... Nb6 {[%clk
0:01:32.6]} 14. Rfe1 {[%clk 0:02:03.1]} 14... Na4 {[%clk 0:01:19.6]} 15. Nb3
{[%clk 0:01:59.2]} 15... Ba8 {[%clk 0:01:15.6]} 16. Ne5 {[%clk 0:02:00]} 16...
Nd7 {[%clk 0:01:14.7]} 17. Nd3 {[%clk 0:01:39.3]} 17... Ndb6 {[%clk 0:00:57.3]}
18. Rad1 {[%clk 0:01:26.7]} 18... Nc4 {[%clk 0:00:56.9]} 19. Bc1 {[%clk
0:01:27.6]} 19... Qc8 {[%clk 0:00:42.3]} 20. Bf1 {[%clk 0:01:23.1]} 20... Qb7
{[%clk 0:00:37.5]} 21. Ndc5 {[%clk 0:01:21.1]} 21... Nxc5 {[%clk 0:00:36.5]} 22.
bxc5 {[%clk 0:01:16.6]} 22... Nd6 {[%clk 0:00:12]} 23. cxd6 {[%clk 0:01:14.1]}
23... cxd6 {[%clk 0:00:13.9]} 24. d5 {[%clk 0:01:05.3]} 24... exd5 {[%clk
0:00:12.8]} 25. exd5 {[%clk 0:01:06.5]} 25... Bf6 {[%clk 0:00:13.7]} 26. Na5
{[%clk 0:01:05.1]} 26... Qb6 {[%clk 0:00:14.4]} 27. Nc6 {[%clk 0:01:06.1]} 27...
Rbc8 {[%clk 0:00:13.7]} 28. Be3 {[%clk 0:01:04.5]} 28... Qb7 {[%clk 0:00:12]}
29. Bd4 {[%clk 0:01:02.4]} 29... Bxd4 {[%clk 0:00:12.3]} 30. Rxd4 {[%clk
0:01:02.9]} 30... Rfe8 {[%clk 0:00:13.6]} 31. Ne7+ {[%clk 0:00:43.4]} 1-0

[Event "*** Titled Tuesday 3|2 Blitz"]
[Site "Chess.com"]
[Date "2016.01.05"]
[Round "6"]
[White "Jahonas"]
[Black "jk13"]
[Result "0-1"]
[WhiteElo "2103"]
[BlackElo "2262"]
[TimeControl "180+2"]
[EndTime "12:12:07 PST"]
[Termination "jk13 won by resignation"]

1. d4 {[%clk 0:03:01.9]} 1... e6 {[%clk 0:03:01.9]} 2. Nf3 {[%clk 0:03:03]} 2...
Nf6 {[%clk 0:03:03.4]} 3. c3 {[%clk 0:03:04.2]} 3... d5 {[%clk 0:03:04.2]} 4.
Bf4 {[%clk 0:03:02.3]} 4... c5 {[%clk 0:03:05.6]} 5. Nbd2 {[%clk 0:02:58.3]}
5... Nc6 {[%clk 0:03:07.1]} 6. e3 {[%clk 0:02:59.2]} 6... Bd6 {[%clk 0:03:08.7]}
7. Bxd6 {[%clk 0:02:59.5]} 7... Qxd6 {[%clk 0:03:09.4]} 8. Be2 {[%clk
0:03:00.9]} 8... O-O {[%clk 0:03:10.8]} 9. O-O {[%clk 0:03:01.9]} 9... e5 {[%clk
0:03:12.4]} 10. dxe5 {[%clk 0:03:02.7]} 10... Nxe5 {[%clk 0:03:14.3]} 11. Nc4
{[%clk 0:03:03.4]} 11... Nxc4 {[%clk 0:03:14.2]} 12. Bxc4 {[%clk 0:03:03.7]}
12... Bg4 {[%clk 0:03:13.9]} 13. Be2 {[%clk 0:03:04.6]} 13... Rad8 {[%clk
0:03:14]} 14. h3 {[%clk 0:03:02.1]} 14... Bh5 {[%clk 0:03:13.8]} 15. c4 {[%clk
0:02:59.6]} 15... Qb6 {[%clk 0:03:01.4]} 16. Qb3 {[%clk 0:02:58.1]} 16... Qxb3
{[%clk 0:02:52.6]} 17. axb3 {[%clk 0:02:58.8]} 17... a6 {[%clk 0:02:54.5]} 18.
Rfd1 {[%clk 0:02:54.7]} 18... Rd6 {[%clk 0:02:46.3]} 19. g4 {[%clk 0:02:54.2]}
19... Bg6 {[%clk 0:02:46.8]} 20. Rd2 {[%clk 0:02:53.2]} 20... Rfd8 {[%clk
0:02:43.7]} 21. Rad1 {[%clk 0:02:52.7]} 21... Kf8 {[%clk 0:02:45.2]} 22. Nh4
{[%clk 0:02:52]} 22... Ke7 {[%clk 0:02:42.3]} 23. Nxg6+ {[%clk 0:02:50]} 23...
hxg6 {[%clk 0:02:44.2]} 24. Bf3 {[%clk 0:02:49.9]} 24... dxc4 {[%clk 0:02:36.3]}
25. Rxd6 {[%clk 0:02:50.3]} 25... Rxd6 {[%clk 0:02:38.2]} 26. Rxd6 {[%clk
0:02:52.2]} 26... Kxd6 {[%clk 0:02:40.1]} 27. bxc4 {[%clk 0:02:51]} 27... b5
{[%clk 0:02:40.5]} 28. cxb5 {[%clk 0:02:51.9]} 28... axb5 {[%clk 0:02:41.4]} 29.
Kf1 {[%clk 0:02:53.1]} 29... c4 {[%clk 0:02:41.3]} 30. Ke2 {[%clk 0:02:53.9]}
30... Kc5 {[%clk 0:02:41.6]} 31. Kd2 {[%clk 0:02:53.8]} 31... b4 {[%clk
0:02:42.7]} 32. g5 {[%clk 0:02:48.7]} 32... Ne8 {[%clk 0:02:42.4]} 33. Be4
{[%clk 0:02:34.7]} 33... Nd6 {[%clk 0:02:42.5]} 34. Bc2 {[%clk 0:02:28.8]} 34...
Kd5 {[%clk 0:02:37.5]} 35. h4 {[%clk 0:02:21.9]} 35... Ne4+ {[%clk 0:02:37]} 36.
Ke2 {[%clk 0:02:16.1]} 36... Nc5 {[%clk 0:02:34.2]} 37. f3 {[%clk 0:02:07.8]}
37... b3 {[%clk 0:02:35.1]} 38. Bb1 {[%clk 0:02:07.7]} 38... Na4 {[%clk
0:02:35.9]} 39. Kd2 {[%clk 0:02:04.1]} 39... Nxb2 {[%clk 0:02:36.9]} 40. Kc3
{[%clk 0:02:03.9]} 40... Nd1+ {[%clk 0:02:32]} 41. Kd2 {[%clk 0:01:49.2]} 41...
Nb2 {[%clk 0:02:32.6]} 42. Kc3 {[%clk 0:01:46.6]} 42... Na4+ {[%clk 0:02:33.7]}
43. Kb4 {[%clk 0:01:45.3]} 43... Nc5 {[%clk 0:02:33.5]} 44. Kc3 {[%clk
0:01:38.2]} 44... Nd7 {[%clk 0:02:29.4]} 45. Kb4 {[%clk 0:01:36.5]} 45... Nc5
{[%clk 0:02:26.8]} 46. Kc3 {[%clk 0:01:35.8]} 46... Na6 {[%clk 0:02:27.9]} 47.
Be4+ {[%clk 0:01:27.6]} 47... Kc5 {[%clk 0:02:28.7]} 48. f4 {[%clk 0:01:27.4]}
48... Nc7 {[%clk 0:02:28.4]} 49. Kd2 {[%clk 0:01:08.2]} 49... Kb4 {[%clk
0:02:27.3]} 50. f5 {[%clk 0:01:07.4]} 50... c3+ {[%clk 0:02:26]} 51. Kd3 {[%clk
0:01:04.1]} 51... gxf5 {[%clk 0:02:27.7]} 52. Bxf5 {[%clk 0:01:04.9]} 52... g6
{[%clk 0:02:22]} 53. Be4 {[%clk 0:00:58]} 53... Ne6 {[%clk 0:02:22.1]} 54. Bd5
{[%clk 0:00:56.4]} 54... Nc5+ {[%clk 0:02:17.6]} 55. Ke2 {[%clk 0:00:54.2]}
55... b2 {[%clk 0:02:18]} 0-1

[Event "*** Titled Tuesday 3|2 Blitz"]
[Site "Chess.com"]
[Date "2016.01.05"]
[Round "6"]
[White "Keranke"]
[Black "Fandorine"]
[Result "1-0"]
[WhiteElo "2612"]
[BlackElo "2540"]
[TimeControl "180+2"]
[EndTime "12:12:23 PST"]
[Termination "Keranke won by resignation"]

1. c4 {[%clk 0:02:51.1]} 1... g6 {[%clk 0:03:00.8]} 2. g3 {[%clk 0:02:52.7]}
2... Bg7 {[%clk 0:03:02.4]} 3. Bg2 {[%clk 0:02:54.6]} 3... Nf6 {[%clk
0:03:03.9]} 4. Nf3 {[%clk 0:02:56.5]} 4... O-O {[%clk 0:03:05.6]} 5. O-O {[%clk
0:02:58.3]} 5... d6 {[%clk 0:03:07.3]} 6. Nc3 {[%clk 0:02:56.9]} 6... Nbd7
{[%clk 0:03:08.8]} 7. Rb1 {[%clk 0:02:56.9]} 7... a5 {[%clk 0:03:09.2]} 8. a3
{[%clk 0:02:56.7]} 8... e5 {[%clk 0:03:05.4]} 9. b4 {[%clk 0:02:57.6]} 9... axb4
{[%clk 0:03:05.9]} 10. axb4 {[%clk 0:02:59.5]} 10... h6 {[%clk 0:03:07.4]} 11.
d3 {[%clk 0:03:00.1]} 11... Re8 {[%clk 0:03:08.2]} 12. e3 {[%clk 0:02:56]} 12...
Nb6 {[%clk 0:03:06.5]} 13. Nd2 {[%clk 0:02:49]} 13... Bg4 {[%clk 0:03:02.4]} 14.
Qb3 {[%clk 0:02:48.1]} 14... Rb8 {[%clk 0:02:53.6]} 15. Bb2 {[%clk 0:02:33.9]}
15... h5 {[%clk 0:02:54]} 16. h3 {[%clk 0:02:32.7]} 16... Be6 {[%clk 0:02:54.6]}
17. Qc2 {[%clk 0:02:27.4]} 17... Nbd7 {[%clk 0:02:41.4]} 18. Ra1 {[%clk
0:02:10.7]} 18... Nf8 {[%clk 0:02:42.4]} 19. Ra7 {[%clk 0:02:11.2]} 19... Qc8
{[%clk 0:02:39.3]} 20. Kh2 {[%clk 0:02:10.5]} 20... N8h7 {[%clk 0:02:39.9]} 21.
Nf3 {[%clk 0:01:46.2]} 21... g5 {[%clk 0:02:33.9]} 22. Ne4 {[%clk 0:01:47]}
22... Nxe4 {[%clk 0:02:25.5]} 23. dxe4 {[%clk 0:01:48.9]} 23... g4 {[%clk
0:02:26.8]} 24. hxg4 {[%clk 0:01:49.2]} 24... hxg4 {[%clk 0:02:27.3]} 25. Nh4
{[%clk 0:01:50.2]} 25... Ng5 {[%clk 0:02:22.6]} 26. Nf5 {[%clk 0:01:40.1]} 26...
Bxf5 {[%clk 0:02:17.5]} 27. exf5 {[%clk 0:01:40.9]} 27... e4 {[%clk 0:02:19]}
28. Bxg7 {[%clk 0:01:40.4]} 28... Kxg7 {[%clk 0:02:15.4]} 29. f6+ {[%clk
0:01:37.1]} 29... Kxf6 {[%clk 0:02:15.3]} 30. Qc3+ {[%clk 0:01:30.7]} 30... Kg6
{[%clk 0:02:09.8]} 31. Rh1 {[%clk 0:01:14.8]} 31... Rh8+ {[%clk 0:01:45.7]} 32.
Kg1 {[%clk 0:01:15.3]} 32... Rxh1+ {[%clk 0:01:45.8]} 33. Kxh1 {[%clk
0:01:07.7]} 33... Ra8 {[%clk 0:01:38.8]} 34. Rxa8 {[%clk 0:01:05.6]} 34... Qxa8
{[%clk 0:01:39.1]} 35. Qd4 {[%clk 0:01:06.3]} 35... b6 {[%clk 0:01:34]} 36. c5
{[%clk 0:01:00.7]} 36... bxc5 {[%clk 0:01:31.6]} 37. bxc5 {[%clk 0:01:02.6]}
37... d5 {[%clk 0:01:32.7]} 38. Qe5 {[%clk 0:01:01.2]} 38... Qc6 {[%clk
0:01:29.8]} 39. Qf4 {[%clk 0:00:33.3]} 39... f5 {[%clk 0:01:26]} 40. Qe5 {[%clk
0:00:33.9]} 40... Qxc5 {[%clk 0:01:23.4]} 41. Qe8+ {[%clk 0:00:34.9]} 41... Nf7
{[%clk 0:01:23.9]} 42. Qe6+ {[%clk 0:00:34.7]} 42... Kg7 {[%clk 0:01:19.8]} 43.
Qxf5 {[%clk 0:00:35.9]} 43... Nh6 {[%clk 0:01:14.4]} 44. Qg5+ {[%clk 0:00:27.7]}
44... Kh7 {[%clk 0:01:15.7]} 45. Bxe4+ {[%clk 0:00:28.9]} 1-0